fUST/lending_fUST_20241119
["ID","MTS","AMOUNT","RATE_DAILY","PERIOD"]
[342638092,1732015838182,-556.16544092,0.00020376,2]
[342638093,1732015838192,-245.56780263,0.00020376,2]
[342638264,1732015839805,-254.43219737,0.00020376,2]
[342638266,1732015839814,-378.61576841,0.00020376,2]
[342638273,1732015839864,-153.58873086,0.00020376,2]
[342638274,1732015839874,-276.9898701,0.00020377,2]
[342638277,1732015839884,-6033.04594336,0.00020377,2]
[342638589,1732015843023,-499.9968081,0.00020377,2]
[342638594,1732015843070,-660.0,0.00020377,2]
[342638596,1732015843082,-1268.59993317,0.00020377,2]
[342638632,1732015846127,-33445.81599872,0.00020377,2]
[342638633,1732015846138,-400.0,0.00020447,2]
[342638634,1732015846150,-584.92980255,0.00021,2]
[342638635,1732015846160,-9057.7,0.00022,30]
[342638636,1732015846170,-642.0,0.00022,2]
[342638637,1732015846179,-250.0,0.0002235,2]
[342638638,1732015846189,-159.133825,0.00022572,2]
[342638639,1732015846204,-152.0,0.00023219,2]
[342638640,1732015846214,-1000.0,0.00023852,2]
[342638641,1732015846224,-5717.13,0.00024977,10]
[342638642,1732015846235,-9789.8,0.00024977,10]
[342638643,1732015846245,-95826.72473474,0.00024987,2]
[342638644,1732015846257,-5733.57577639,0.00024987,2]
[342638645,1732015846267,-500.0,0.00024987,7]
[342638646,1732015846277,-500.0,0.00024987,7]
[342638647,1732015846288,-500.0,0.00024987,7]
[342638648,1732015846298,-500.0,0.00024987,7]
[342638649,1732015846307,-500.0,0.00024987,7]
[342638650,1732015846317,-500.0,0.00024987,7]
[342638651,1732015846327,-402.94,0.00024987,7]
[342638652,1732015846337,-500.0,0.00024987,7]
[342638653,1732015846347,-500.0,0.00024987,7]
[342638654,1732015846357,-505.55286807,0.00024987,7]
[342638655,1732015846367,-500.0,0.00024987,7]
[342638656,1732015846377,-500.0,0.00024987,7]
[342638657,1732015846386,-500.0,0.00024987,7]
[342638658,1732015846396,-500.0,0.00024987,7]
[342638659,1732015846406,-500.0,0.00024987,7]
[342638660,1732015846416,-500.0,0.00024987,7]
[342638661,1732015846425,-500.0,0.00024987,7]
[342638662,1732015846436,-500.0,0.00024987,7]
[342638663,1732015846447,-229.42,0.00024987,7]
[342638664,1732015846457,-2001.5,0.00024987,7]
[342638665,1732015846467,-500.0,0.00024987,7]
[342638666,1732015846477,-500.0,0.00024987,7]
[342638667,1732015846487,-500.0,0.00024987,7]
[342638668,1732015846497,-500.0,0.00024987,7]
[342638669,1732015846507,-500.0,0.00024987,7]
[342638670,1732015846517,-500.0,0.00024987,7]
[342638671,1732015846527,-500.0,0.00024987,7]
[342638672,1732015846537,-500.0,0.00024987,7]
[342638673,1732015846547,-500.0,0.00024987,7]
[342638674,1732015846557,-500.0,0.00024987,7]
[342638675,1732015846567,-500.0,0.00024987,7]
[342638676,1732015846576,-500.0,0.00024987,7]
[342638677,1732015846586,-500.0,0.00024987,7]
[342638678,1732015846596,-463.15,0.00024987,7]
[342638679,1732015846605,-500.0,0.00024987,7]
[342638680,1732015846617,-500.0,0.00024996,7]
[342638681,1732015846627,-601.32,0.00024996,7]
[342638682,1732015846640,-500.0,0.00024996,7]
[342638683,1732015846835,-500.0,0.00024996,7]
[342638684,1732015846846,-500.0,0.00024996,7]
[342638685,1732015846857,-594.48,0.00024996,7]
[342638686,1732015846866,-500.0,0.00024996,7]
[342638687,1732015846876,-500.0,0.00024996,7]
[342638688,1732015846886,-500.0,0.00024996,7]
[342638689,1732015846896,-445.06,0.00024996,7]
[342638690,1732015846905,-2001.5,0.00024996,7]
[342638691,1732015846915,-2001.5,0.00024996,7]
[342638692,1732015846924,-500.0,0.00024996,7]
[342638693,1732015846934,-500.0,0.00024996,7]
[342638694,1732015846945,-500.0,0.00024997,7]
[342638695,1732015846956,-500.0,0.00024997,7]
[342638696,1732015846965,-500.0,0.00024997,7]
[342638697,1732015846975,-500.0,0.00024997,7]
[342638698,1732015846984,-500.0,0.00024997,7]
[342638699,1732015846994,-500.0,0.00024997,7]
[342638700,1732015847003,-500.0,0.00024997,7]
[342638701,1732015847013,-500.0,0.00024997,7]
[342638702,1732015847023,-500.0,0.00024997,7]
[342638703,1732015847033,-500.0,0.00024997,7]
[342638704,1732015847042,-500.0,0.00024997,7]
[342638705,1732015847052,-500.0,0.00024997,7]
[342638706,1732015847061,-500.0,0.00024997,7]
[342638707,1732015847070,-500.0,0.00024997,7]
[342638708,1732015847079,-500.0,0.00024997,7]
[342638709,1732015847089,-500.0,0.00024997,7]
[342638710,1732015847098,-500.0,0.00024997,7]
[342638711,1732015847108,-528.28746022,0.00024997,7]
[342638712,1732015847117,-500.0,0.00024997,7]
[342638713,1732015847127,-500.0,0.00024997,7]
[342638714,1732015847137,-500.0,0.00024997,7]
[342638715,1732015847146,-500.0,0.00024997,7]
[342638716,1732015847156,-500.0,0.00024997,7]
[342638717,1732015847165,-500.0,0.00024997,7]
[342638718,1732015847174,-500.0,0.00024997,7]
[342638719,1732015847184,-500.0,0.00024997,7]
[342638720,1732015847193,-500.0,0.00024997,7]
[342638721,1732015847203,-500.0,0.00024997,7]
[342638722,1732015847212,-500.0,0.00024997,7]
[342638723,1732015847222,-500.0,0.00024997,7]
[342638724,1732015847231,-500.0,0.00024997,7]
[342638725,1732015847242,-517.24155001,0.00024997,7]
[342638726,1732015847251,-649.04,0.00024997,7]
[342638727,1732015847262,-500.0,0.00024997,7]
[342638728,1732015847271,-503.28628661,0.00024997,7]
[342638729,1732015847281,-500.0,0.00024997,7]
[342638730,1732015847291,-500.0,0.00024997,7]
[342638731,1732015847300,-500.0,0.00024997,7]
[342638732,1732015847310,-500.0,0.00024997,7]
[342638733,1732015847320,-500.0,0.00024997,7]
[342638734,1732015847330,-500.0,0.00024997,7]
[342638735,1732015847340,-500.0,0.00024997,7]
[342638736,1732015847349,-500.0,0.00024997,7]
[342638737,1732015847359,-500.0,0.00024997,7]
[342638738,1732015847368,-500.0,0.00024997,7]
[342638739,1732015847378,-345.38,0.00024997,7]
[342638740,1732015847387,-500.0,0.00024997,7]
[342638741,1732015847397,-501.23462508,0.00024997,7]
[342638742,1732015847406,-500.0,0.00024997,7]
[342638743,1732015847416,-510.62,0.00024997,7]
[342638744,1732015847425,-500.0,0.00024997,7]
[342638745,1732015847435,-500.0,0.00024997,7]
[342638746,1732015847445,-500.0,0.00024997,7]
[342638747,1732015847454,-1092.68,0.00024997,7]
[342638748,1732015847464,-500.0,0.00024997,7]
[342638749,1732015847473,-500.0,0.00024997,7]
[342638750,1732015847482,-481.63,0.00024997,7]
[342638751,1732015847492,-500.0,0.00024997,7]
[342638752,1732015847501,-500.0,0.00024997,7]
[342638753,1732015847511,-500.0,0.00024997,7]
[342638754,1732015847520,-500.0,0.00024997,7]
[342638755,1732015847530,-500.0,0.00024997,7]
[342638756,1732015847539,-500.0,0.00024997,7]
[342638757,1732015847549,-500.0,0.00024997,7]
[342638758,1732015847559,-500.0,0.00024997,7]
[342638759,1732015847569,-500.0,0.00024997,7]
[342638760,1732015847579,-627.21,0.00024997,7]
[342638761,1732015847589,-500.0,0.00024997,7]
[342638762,1732015847598,-500.0,0.00024997,7]
[342638763,1732015847608,-571.54,0.00024997,7]
[342638764,1732015847617,-500.0,0.00024997,7]
[342638765,1732015847626,-2001.5,0.00024997,7]
[342638766,1732015847637,-2001.5,0.00024997,7]
[342638767,1732015847648,-2001.5,0.00024997,7]
[342638768,1732015847657,-2001.5,0.00024997,7]
[342638769,1732015847667,-2001.5,0.00024997,7]
[342638770,1732015847676,-2001.5,0.00024997,7]
[342638771,1732015847687,-2001.5,0.00024997,7]
[342638772,1732015847698,-2001.5,0.00024997,7]
[342638773,1732015847708,-513.12172237,0.00024997,7]
[342638774,1732015847718,-500.0,0.00024997,7]
[342638775,1732015847728,-500.0,0.00024997,7]
[342638776,1732015847738,-500.0,0.00024997,7]
[342638777,1732015847749,-500.0,0.00024997,7]
[342638778,1732015847758,-500.0,0.00024997,7]
[342638779,1732015847767,-500.0,0.00024997,7]
[342638780,1732015847777,-500.0,0.00024997,7]
[342638781,1732015847786,-500.0,0.00024997,7]
[342638782,1732015847795,-539.21,0.00024997,7]
[342638783,1732015847805,-296.87,0.00024997,7]
[342638784,1732015847814,-500.54520619,0.00024997,7]
[342638785,1732015847824,-561.27,0.00024997,7]
[342638786,1732015847834,-1004.56,0.00024997,7]
[342638787,1732015847843,-503.91513513,0.00024998,7]
[342638788,1732015847853,-474.06469883,0.00024998,7]
[342638789,1732015847862,-547.98,0.00024998,7]
[342638790,1732015847871,-500.0,0.00024998,7]
[342638791,1732015847882,-500.0,0.00024998,7]
[342638792,1732015847892,-500.0,0.00024998,7]
[342638793,1732015847903,-609.65,0.00024998,7]
[342638794,1732015847913,-500.0,0.00024998,7]
[342638795,1732015847922,-500.0,0.00024998,7]
[342638796,1732015847932,-500.0,0.00024998,7]
[342638797,1732015847943,-500.0,0.00024998,7]
[342638798,1732015847953,-500.0,0.00024998,7]
[342638799,1732015847964,-500.0,0.00024998,7]
[342638800,1732015847973,-500.0,0.00024998,7]
[342638801,1732015847984,-500.0,0.00024998,7]
[342638802,1732015847993,-500.0,0.00024998,7]
[342638803,1732015848003,-2336.0,0.00024998,2]
[342638804,1732015848012,-500.0,0.00024998,7]
[342638805,1732015848022,-2223.36,0.00024998,7]
[342638806,1732015848032,-559.52,0.00024998,2]
[342638807,1732015848041,-500.0,0.00024998,7]
[342638808,1732015848051,-500.0,0.00024998,7]
[342638809,1732015848060,-500.0,0.00024998,7]
[342638810,1732015848070,-500.0,0.00024998,7]
[342638811,1732015848080,-787.3,0.00024998,7]
[342638812,1732015848090,-500.0,0.00024998,7]
[342638813,1732015848099,-278.7484298,0.00024998,7]
[342638814,1732015848109,-500.0,0.00024998,7]
[342638815,1732015848119,-500.0,0.00024998,7]
[342638816,1732015848129,-500.0,0.00024998,7]
[342638817,1732015848139,-500.0,0.00024998,7]
[342638818,1732015848149,-619.18,0.00024998,7]
[342638819,1732015848159,-503.85101153,0.00024998,7]
[342638820,1732015848176,-500.0,0.00024998,7]
[342638821,1732015848189,-500.0,0.00024998,7]
[342638822,1732015848200,-500.0,0.00024998,7]
[342638823,1732015848210,-500.0,0.00024998,7]
[342638824,1732015848220,-500.0,0.00024998,7]
[342638825,1732015848230,-516.0717039,0.00024998,7]
[342638826,1732015848240,-572.50562354,0.00024998,7]
[342638827,1732015848250,-500.0,0.00024998,7]
[342638828,1732015848260,-500.0,0.00024998,7]
[342638829,1732015848270,-500.77992941,0.00024998,7]
[342638830,1732015848280,-500.0,0.00024998,7]
[342638831,1732015848290,-500.0,0.00024998,7]
[342638832,1732015848299,-500.0,0.00024998,7]
[342638833,1732015848309,-500.0,0.00024998,7]
[342638834,1732015848319,-500.0,0.00024998,7]
[342638835,1732015848329,-504.89022807,0.00024998,7]
[342638836,1732015848339,-501.30012096,0.00024998,7]
[342638837,1732015848348,-500.79879751,0.00024998,7]
[342638838,1732015848359,-500.0,0.00024998,7]
[342638839,1732015848369,-500.0,0.00024998,7]
[342638840,1732015848379,-500.0,0.00024998,7]
[342638841,1732015848388,-500.0,0.00024998,7]
[342638842,1732015848398,-500.0,0.00024998,7]
[342638843,1732015848407,-500.0,0.00024998,7]
[342638844,1732015848417,-500.0,0.00024998,7]
[342638845,1732015848427,-500.0,0.00024998,7]
[342638846,1732015848437,-505.35152098,0.00024998,7]
[342638847,1732015848448,-500.0,0.00024998,7]
[342638848,1732015848458,-500.0,0.00024998,7]
[342638849,1732015848467,-500.0,0.00024998,7]
[342638850,1732015848477,-520.79676284,0.00024998,7]
[342638851,1732015848486,-500.0,0.00024998,7]
[342638852,1732015848495,-500.0,0.00024998,7]
[342638853,1732015848505,-500.55692025,0.00024998,7]
[342638854,1732015848515,-500.0,0.00024998,7]
[342638855,1732015848524,-500.67438869,0.00024998,7]
[342638856,1732015848534,-579.37,0.00024998,7]
[342638857,1732015848543,-484.3536909,0.00024998,7]
[342638858,1732015848553,-500.0,0.00024998,7]
[342638859,1732015848562,-545.46761185,0.00024998,7]
[342638860,1732015848572,-2026.5796426,0.00024998,2]
[342638861,1732015848581,-500.0,0.00024998,7]
[342638862,1732015848591,-386.10588441,0.00024998,7]
[342638863,1732015848601,-234.52402937,0.00024998,7]
[342638864,1732015848610,-500.0,0.00024998,7]
[342638865,1732015848620,-500.64170615,0.00024998,7]
[342638866,1732015848630,-500.0,0.00024998,7]
[342638867,1732015848644,-500.0,0.00024998,7]
[342638868,1732015848654,-500.0,0.00024998,7]
[342638869,1732015848664,-500.0,0.00024998,7]
[342638870,1732015848674,-500.0,0.00024998,7]
[342638871,1732015848683,-500.0,0.00024998,7]
[342638872,1732015848693,-500.0,0.00024998,7]
[342638873,1732015848704,-500.0,0.00024998,7]
[342638874,1732015848715,-500.0,0.00024998,7]
[342638875,1732015848724,-500.0,0.00024998,7]
[342638876,1732015848733,-533.21283218,0.00024998,7]
[342638877,1732015848743,-500.0,0.00024998,7]
[342638878,1732015848752,-500.0,0.00024998,7]
[342638879,1732015848762,-500.0,0.00024998,7]
[342638880,1732015848772,-500.42396265,0.00024998,7]
[342638881,1732015848781,-500.0,0.00024998,7]
[342638882,1732015848791,-500.0,0.00024998,7]
[342638883,1732015848801,-550.06504724,0.00024998,7]
[342638884,1732015848811,-500.0,0.00024998,7]
[342638885,1732015848821,-500.0,0.00024998,7]
[342638886,1732015848832,-500.0,0.00024998,7]
[342638887,1732015848841,-500.0,0.00024998,7]
[342638888,1732015848851,-500.0,0.00024998,7]
[342638889,1732015848861,-500.0,0.00024998,7]
[342638890,1732015848871,-500.0,0.00024998,7]
[342638891,1732015848881,-522.09686116,0.00024998,7]
[342638892,1732015848891,-500.0,0.00024998,7]
[342638893,1732015848902,-500.0,0.00024998,7]
[342638894,1732015848914,-500.0,0.00024998,7]
[342638895,1732015848924,-500.0,0.00024998,7]
[342638896,1732015848934,-500.0,0.00024998,7]
[342638897,1732015848943,-500.0,0.00024998,7]
[342638898,1732015848955,-500.0,0.00024998,7]
[342638899,1732015848965,-500.0,0.00024998,7]
[342638900,1732015848975,-500.0,0.00024998,7]
[342638901,1732015848985,-500.0,0.00024998,7]
[342638902,1732015848995,-500.0,0.00024998,7]
[342638903,1732015849005,-500.0,0.00024998,7]
[342638904,1732015849014,-500.0,0.00024998,7]
[342638905,1732015849023,-500.0,0.00024998,7]
[342638906,1732015849033,-500.0,0.00024998,7]
[342638907,1732015849042,-500.28299077,0.00024998,7]
[342638908,1732015849052,-500.0,0.00024998,7]
[342638909,1732015849062,-519.79812297,0.00024999,7]
[342638910,1732015849072,-545.74228032,0.00024999,7]
[342638911,1732015849082,-510.55566024,0.00024999,7]
[342638912,1732015849091,-500.21839597,0.00024999,7]
[342638913,1732015849102,-500.0,0.00024999,7]
[342638914,1732015849111,-165.021,0.00024999,8]
[342638915,1732015849121,-2170.26,0.00025,2]
[342638916,1732015849132,-500.0,0.00025073,2]
[342638917,1732015849141,-500.0,0.00025086,7]
[342638918,1732015849152,-500.0,0.00025086,7]
[342638919,1732015849162,-2001.5,0.00025086,7]
[342638920,1732015849171,-500.0,0.00025087,7]
[342638921,1732015849181,-500.0,0.00025087,7]
[342638922,1732015849191,-500.0,0.00025087,7]
[342638923,1732015849202,-186.23,0.00025087,7]
[342638924,1732015849212,-500.0,0.00025087,7]
[342638925,1732015849222,-401.07,0.00025087,7]
[342638926,1732015849231,-500.0,0.00025087,7]
[342638927,1732015849241,-617.41,0.00025087,7]
[342638928,1732015849251,-500.0,0.00025087,7]
[342638929,1732015849260,-299.2,0.00025087,7]
[342638930,1732015849270,-312.64,0.00025087,7]
[342638931,1732015849279,-617.32041013,0.00025087,7]
[342638932,1732015849289,-500.0,0.00025087,7]
[342638933,1732015849299,-271.01,0.00025087,7]
[342638934,1732015849308,-500.0,0.00025087,7]
[342638935,1732015849318,-500.0,0.00025087,7]
[342638936,1732015849327,-500.0,0.00025087,7]
[342638937,1732015849337,-303.5,0.00025087,7]
[342638938,1732015849347,-500.0,0.00025087,7]
[342638939,1732015849357,-500.0,0.00025087,7]
[342638940,1732015849366,-500.0,0.00025087,7]
[342638941,1732015849375,-500.0,0.00025087,7]
[342638942,1732015849385,-1092.68,0.00025087,7]
[342638943,1732015849394,-500.0,0.00025087,7]
[342638944,1732015849404,-500.0,0.00025087,7]
[342638945,1732015849414,-500.0,0.00025087,7]
[342638946,1732015849424,-500.0,0.00025087,7]
[342638947,1732015849433,-627.21,0.00025087,7]
[342638948,1732015849443,-365.23,0.00025087,7]
[342638949,1732015849454,-2001.5,0.00025087,7]
[342638950,1732015849464,-1004.56,0.00025087,7]
[342638951,1732015849473,-500.0,0.00025088,7]
[342638952,1732015849483,-500.0,0.00025088,7]
[342638953,1732015849492,-500.0,0.00025088,7]
[342638954,1732015849502,-500.0,0.00025088,7]
[342638955,1732015849511,-500.0,0.00025088,7]
[342638956,1732015849520,-500.0,0.00025088,7]
[342638957,1732015849530,-337.55,0.00025088,7]
[342638958,1732015849540,-333.63,0.00025088,7]
[342638959,1732015849550,-500.0,0.00025088,7]
[342638960,1732015849559,-500.0,0.00025088,7]
[342638961,1732015849570,-624.05849256,0.00025088,2]
[342638962,1732015849580,-2223.36,0.00025088,7]
[342638963,1732015849589,-500.0,0.00025088,7]
[342638964,1732015849599,-500.0,0.00025088,7]
[342638965,1732015849609,-500.0,0.00025088,7]
[342638966,1732015849619,-787.3,0.00025088,7]
[342638967,1732015849629,-499.62,0.00025088,7]
[342638968,1732015849642,-276.34,0.00025088,7]
[342638969,1732015849652,-275.4,0.00025088,7]
[342638970,1732015849661,-375.31,0.00025088,7]
[342638971,1732015849671,-313.64,0.00025088,7]
[342638972,1732015849681,-461.09,0.00025088,7]
[342638973,1732015849691,-273.06,0.00025088,7]
[342638974,1732015849703,-312.95,0.00025088,7]
[342638975,1732015849715,-311.23,0.00025088,7]
[342638976,1732015849725,-315.98,0.00025088,7]
[342638977,1732015849734,-500.0,0.00025088,7]
[342638978,1732015849744,-500.0,0.00025088,7]
[342638979,1732015849754,-500.0,0.00025088,7]
[342638980,1732015849764,-332.43,0.00025088,7]
[342638981,1732015849773,-500.0,0.00025088,7]
[342638982,1732015849783,-500.0,0.00025088,7]
[342638983,1732015849793,-500.0,0.00025088,7]
[342638984,1732015849802,-458.32,0.00025088,7]
[342638985,1732015849812,-500.0,0.00025088,7]
[342638986,1732015849821,-399.38,0.00025088,7]
[342638987,1732015849831,-187.82,0.00025088,7]
[342638988,1732015849840,-500.0,0.00025088,7]
[342638989,1732015849849,-500.0,0.00025088,7]
[342638990,1732015849859,-372.84,0.00025088,7]
[342638991,1732015849869,-424.18,0.00025088,7]
[342638992,1732015849879,-261.21,0.00025088,7]
[342638993,1732015849889,-451.05,0.00025088,7]
[342638994,1732015849899,-207.68,0.00025088,7]
[342638995,1732015849909,-159.95,0.00025088,7]
[342638996,1732015849919,-500.0,0.00025088,7]
[342638997,1732015849929,-500.0,0.00025088,7]
[342638998,1732015849939,-391.96549064,0.00025088,7]
[342638999,1732015849951,-500.0,0.00025088,7]
[342639000,1732015849962,-198.63614338,0.00025088,7]
[342639001,1732015849972,-500.0,0.00025088,7]
[342639002,1732015849982,-500.0,0.00025088,7]
[342639003,1732015849992,-500.0,0.00025095,7]
[342639004,1732015850002,-396.85,0.00025095,7]
[342639005,1732015850012,-2001.5,0.00025095,7]
[342639006,1732015850021,-313.18,0.00025096,7]
[342639007,1732015850031,-500.0,0.00025096,7]
[342639008,1732015850042,-614.31,0.00025096,7]
[342639009,1732015850052,-500.0,0.00025096,7]
[342639010,1732015850062,-500.0,0.00025096,7]
[342639011,1732015850071,-500.0,0.00025096,7]
[342639012,1732015850081,-395.88,0.00025096,7]
[342639013,1732015850091,-500.0,0.00025096,7]
[342639014,1732015850100,-400.93,0.00025096,7]
[342639015,1732015850109,-500.0,0.00025096,7]
[342639016,1732015850119,-500.0,0.00025096,7]
[342639017,1732015850129,-500.0,0.00025096,7]
[342639018,1732015850139,-500.0,0.00025096,7]
[342639019,1732015850149,-500.0,0.00025096,7]
[342639020,1732015850158,-529.62,0.00025096,7]
[342639021,1732015850168,-1092.68,0.00025096,7]
[342639022,1732015850177,-500.0,0.00025096,7]
[342639023,1732015850187,-500.0,0.00025096,7]
[342639024,1732015850199,-500.0,0.00025096,7]
[342639025,1732015850208,-627.21,0.00025096,7]
[342639026,1732015850218,-2001.5,0.00025096,7]
[342639027,1732015850227,-2001.5,0.00025096,7]
[342639028,1732015850237,-1004.56,0.00025096,7]
[342639029,1732015850246,-500.0,0.00025097,7]
[342639030,1732015850396,-500.0,0.00025097,7]
[342639031,1732015850407,-500.0,0.00025097,7]
[342639032,1732015850416,-295.23,0.00025097,7]
[342639033,1732015850427,-500.0,0.00025097,7]
[342639034,1732015850437,-500.0,0.00025097,7]
[342639035,1732015850447,-500.0,0.00025097,7]
[342639036,1732015850457,-500.0,0.00025097,7]
[342639037,1732015850467,-500.0,0.00025097,7]
[342639038,1732015850476,-190.71,0.00025097,7]
[342639039,1732015850486,-500.0,0.00025097,7]
[342639040,1732015850495,-500.0,0.00025097,7]
[342639041,1732015850505,-500.0,0.00025097,7]
[342639042,1732015850514,-203.57,0.00025097,7]
[342639043,1732015850522,-500.0,0.00025097,7]
[342639044,1732015850532,-500.0,0.00025097,7]
[342639045,1732015850541,-500.0,0.00025097,7]
[342639046,1732015850551,-530.89,0.00025097,7]
[342639047,1732015850561,-500.0,0.00025097,7]
[342639048,1732015850571,-500.0,0.00025097,7]
[342639049,1732015850580,-500.0,0.00025097,7]
[342639050,1732015850590,-199.67,0.00025097,7]
[342639051,1732015850599,-500.0,0.00025097,7]
[342639052,1732015850608,-500.0,0.00025097,7]
[342639053,1732015850617,-500.0,0.00025097,7]
[342639054,1732015850626,-500.0,0.00025097,7]
[342639055,1732015850638,-500.0,0.00025097,7]
[342639056,1732015850647,-500.0,0.00025097,7]
[342639057,1732015850657,-500.0,0.00025097,7]
[342639058,1732015850666,-500.0,0.00025097,7]
[342639059,1732015850676,-500.0,0.00025097,7]
[342639060,1732015850686,-500.0,0.00025097,7]
[342639061,1732015850696,-500.0,0.00025097,7]
[342639062,1732015850708,-500.0,0.00025097,7]
[342639063,1732015850719,-500.0,0.00025097,7]
[342639064,1732015850728,-500.0,0.00025097,7]
[342639065,1732015850739,-500.0,0.00025097,7]
[342639066,1732015850748,-174.94,0.00025097,7]
[342639067,1732015850758,-500.0,0.00025097,7]
[342639068,1732015850768,-500.0,0.00025097,7]
[342639069,1732015850777,-500.0,0.00025097,7]
[342639070,1732015850788,-562.96,0.00025097,7]
[342639071,1732015850797,-408.8,0.00025097,7]
[342639072,1732015850807,-1092.68,0.00025097,7]
[342639073,1732015850816,-578.1,0.00025097,7]
[342639074,1732015850826,-1092.68,0.00025097,7]
[342639075,1732015850835,-1092.68,0.00025097,7]
[342639076,1732015850845,-1092.68,0.00025097,7]
[342639077,1732015850855,-1092.68,0.00025097,7]
[342639078,1732015850864,-1092.68,0.00025097,7]
[342639079,1732015850873,-1092.68,0.00025097,7]
[342639080,1732015850882,-1092.68,0.00025097,7]
[342639081,1732015850892,-1092.68,0.00025097,7]
[342639082,1732015850901,-1092.68,0.00025097,7]
[342639083,1732015850912,-500.0,0.00025097,7]
[342639084,1732015850922,-500.0,0.00025097,7]
[342639085,1732015850933,-470.79,0.00025097,7]
[342639086,1732015850942,-500.0,0.00025097,7]
[342639087,1732015850956,-402.17,0.00025097,7]
[342639088,1732015850966,-627.21,0.00025097,7]
[342639089,1732015850975,-627.21,0.00025097,7]
[342639090,1732015850984,-627.21,0.00025097,7]
[342639091,1732015850994,-627.21,0.00025097,7]
[342639092,1732015851003,-627.21,0.00025097,7]
[342639093,1732015851013,-627.21,0.00025097,7]
[342639094,1732015851022,-627.21,0.00025097,7]
[342639095,1732015851034,-627.21,0.00025097,7]
[342639096,1732015851044,-627.21,0.00025097,7]
[342639097,1732015851052,-627.21,0.00025097,7]
[342639098,1732015851062,-2001.5,0.00025097,7]
[342639099,1732015851071,-2001.5,0.00025097,7]
[342639100,1732015851080,-2001.5,0.00025097,7]
[342639101,1732015851089,-2001.5,0.00025097,7]
[342639102,1732015851100,-2001.5,0.00025097,7]
[342639103,1732015851110,-2001.5,0.00025097,7]
[342639104,1732015851119,-2001.5,0.00025097,7]
[342639105,1732015851129,-2001.65,0.00025097,7]
[342639106,1732015851138,-1004.56,0.00025097,7]
[342639107,1732015851147,-1004.56,0.00025097,7]
[342639108,1732015851157,-1004.56,0.00025097,7]
[342639109,1732015851166,-1004.56,0.00025097,7]
[342639110,1732015851175,-1004.56,0.00025097,7]
[342639111,1732015851185,-1004.56,0.00025097,7]
[342639112,1732015851195,-1004.56,0.00025097,7]
[342639113,1732015851206,-1004.56,0.00025097,7]
[342639114,1732015851216,-1004.56,0.00025097,7]
[342639115,1732015851225,-1004.56,0.00025097,7]
[342639116,1732015851235,-500.0,0.00025098,7]
[342639117,1732015851245,-500.0,0.00025098,7]
[342639118,1732015851254,-548.41,0.00025098,7]
[342639119,1732015851263,-500.0,0.00025098,7]
[342639120,1732015851273,-500.0,0.00025098,7]
[342639121,1732015851283,-500.0,0.00025098,7]